fUST/lending_fUST_20251115
["ID","MTS","AMOUNT","RATE_DAILY","PERIOD"]
[394030814,1763200336284,-840.74,0.00053424,120]
[394030815,1763200336296,-839.73,0.00053424,120]
[394030816,1763200336306,-506.13918822,0.00053424,120]
[394030817,1763200336315,-500.0,0.00053424,120]
[394030818,1763200336325,-548.3,0.00053424,120]
[394030819,1763200336335,-533.64,0.00053424,120]
[394030820,1763200336346,-500.0,0.00053424,120]
[394030821,1763200336355,-1390.62,0.00053424,120]
[394030822,1763200336365,-210.78468595,0.00053424,120]
[394030823,1763200336376,-572.61,0.00053424,120]
[394030824,1763200336386,-1276.71,0.00053424,120]
[394030825,1763200336396,-1188.94,0.00053424,120]
[394030826,1763200336406,-1077.77,0.00053424,120]
[394030827,1763200336416,-396.56325966,0.00053424,120]
[394030828,1763200336426,-1791.91,0.00053424,120]
[394030829,1763200336436,-509.85569969,0.00053424,120]
[394030830,1763200336446,-500.0,0.00053424,120]
[394030831,1763200336456,-451.35685905,0.00053424,120]
[394030832,1763200336466,-1017.14,0.00053424,120]
[394030833,1763200336477,-500.0,0.00053424,120]
[394030834,1763200336487,-500.0,0.00053424,120]
[394030835,1763200336497,-936.67,0.00053424,120]
[394030836,1763200336508,-500.0,0.00053424,120]
[394030837,1763200336518,-500.0,0.00053424,120]
[394030838,1763200336528,-649.89,0.00053424,120]
[394030839,1763200336540,-1776.75,0.00053424,120]
[394030840,1763200336551,-500.0,0.00053424,120]
[394030841,1763200336561,-500.0,0.00053424,120]
[394030842,1763200336572,-500.0,0.00053424,120]
[394030843,1763200336582,-500.0,0.00053424,120]
[394030844,1763200336592,-532.97,0.00053424,120]
[394030845,1763200336603,-500.0,0.00053424,120]
[394030846,1763200336614,-777.09,0.00053424,120]
[394030847,1763200336624,-500.0,0.00053424,120]
[394030848,1763200336634,-500.0,0.00053424,120]
[394030849,1763200336645,-1276.7,0.00053424,7]
[394030850,1763200336655,-927.9,0.00053424,120]
[394030851,1763200336666,-551.15809735,0.00053424,120]
[394030852,1763200336677,-769.66,0.00053424,120]
[394030853,1763200336687,-979.1,0.00053424,120]
[394030854,1763200336697,-500.0,0.00053424,120]
[394030855,1763200336708,-500.0,0.00053424,120]
[394030856,1763200336718,-500.0,0.00053424,120]
[394030857,1763200336728,-624.67,0.00053424,120]
[394030858,1763200336739,-609.02,0.00053424,120]
[394030859,1763200336750,-500.0,0.00053424,120]
[394030860,1763200336760,-500.0,0.00053424,120]
[394030861,1763200336771,-500.0,0.00053424,120]
[394030862,1763200336781,-500.0,0.00053424,120]
[394030863,1763200336793,-745.41,0.00053424,120]
[394030864,1763200336803,-466.18007422,0.00053424,120]
[394030865,1763200336814,-500.0,0.00053424,120]
[394030866,1763200336824,-4568.1,0.00053424,3]
[394030867,1763200336834,-500.0,0.00053424,120]
[394030868,1763200336845,-1131.39,0.00053424,120]
[394030869,1763200336855,-500.0,0.00053424,120]
[394030870,1763200336864,-500.0,0.00053424,120]
[394030871,1763200336875,-797.3,0.00053424,120]
[394030872,1763200336886,-849.34,0.00053424,120]
[394030873,1763200336897,-500.0,0.00053424,120]
[394030874,1763200336907,-577.74,0.00053424,120]
[394030875,1763200336918,-647.88,0.00053424,120]
[394030876,1763200336929,-566.74,0.00053424,120]
[394030877,1763200336939,-636.73,0.00053424,120]
[394030878,1763200336949,-500.0,0.00053424,30]
[394030879,1763200336960,-500.0,0.00053424,120]
[394030880,1763200336971,-500.0,0.00053424,120]
[394030881,1763200336981,-1133.68,0.00053424,120]
[394030882,1763200336991,-500.0,0.00053424,120]
[394030883,1763200337002,-500.0,0.00053424,120]
[394030884,1763200337012,-1012.59,0.00053424,120]
[394030885,1763200337022,-500.0,0.00053424,120]
[394030886,1763200337032,-1236.1,0.00053424,120]
[394030887,1763200337044,-500.0,0.00053424,120]
[394030888,1763200337054,-800.22,0.00053424,120]
[394030889,1763200337064,-500.0,0.00053424,120]
[394030890,1763200337075,-815.37,0.00053424,120]
[394030891,1763200337085,-1270.32,0.00053424,120]
[394030892,1763200337096,-500.0,0.00053424,120]
[394030893,1763200337106,-617.48,0.00053424,120]
[394030894,1763200337117,-2708.03,0.00053424,120]
[394030895,1763200337127,-500.0,0.00053424,120]
[394030896,1763200337145,-324.48839857,0.00053424,120]
[394030897,1763200337157,-1700.39,0.00053424,120]
[394030898,1763200337168,-845.92,0.00053424,120]
[394030899,1763200337179,-590.7,0.00053424,120]
[394030900,1763200337189,-500.0,0.00053424,120]
[394030901,1763200337199,-500.0,0.00053424,120]
[394030902,1763200337210,-576.07,0.00053424,120]
[394030903,1763200337224,-500.0,0.00053424,120]
[394030904,1763200337235,-500.0,0.00053424,120]
[394030905,1763200337246,-500.0,0.00053424,120]
[394030906,1763200337256,-221.6,0.00053424,120]
[394030907,1763200337266,-1000.0,0.00053424,2]
[394030908,1763200337277,-252.5235344,0.00053424,120]
[394030909,1763200337289,-342.51389447,0.00053424,120]
[394030910,1763200337300,-812.44,0.00053424,2]
[394030911,1763200337310,-557.41,0.00053424,120]
[394030912,1763200337320,-1000.0,0.00053424,30]
[394030913,1763200337330,-500.0,0.00053424,60]
[394030914,1763200337341,-332260.9172,0.0005344,30]
[394030915,1763200337351,-200.0,0.00053493,120]
[394030916,1763200337361,-13725.0692964,0.00053495,120]
[394030917,1763200337372,-876.97847259,0.000535,120]
[394030918,1763200337383,-11000.73817878,0.000535,120]
[394030919,1763200337393,-450.0,0.00053589,120]
[394030920,1763200337403,-500.0,0.00053698,120]
[394030921,1763200337414,-687.74,0.00053698,120]
[394030922,1763200337427,-554.45,0.00053698,120]
[394030923,1763200337438,-500.0,0.00053698,120]
[394030924,1763200337449,-500.0,0.00053698,120]
[394030925,1763200337460,-582.92,0.00053698,120]
[394030926,1763200337470,-268.11235498,0.00053698,120]
[394030927,1763200337481,-790.87,0.00053698,120]
[394030928,1763200337492,-629.47,0.00053698,120]
[394030929,1763200337503,-673.94,0.00053698,120]
[394030930,1763200337513,-515.93059186,0.00053698,120]
[394030931,1763200337524,-758.17,0.00053698,120]
[394030932,1763200337535,-590.85,0.00053698,120]
[394030933,1763200337547,-731.68,0.00053698,120]
[394030934,1763200337558,-571.3,0.00053698,120]
[394030935,1763200337568,-162.43467916,0.00053698,120]
[394030936,1763200337580,-1090.76,0.00053698,7]
[394030937,1763200337590,-3400.85,0.00053698,2]
[394030938,1763200337602,-1174.97,0.00053698,120]
[394030939,1763200337613,-618.7,0.00053698,120]
[394030940,1763200337623,-506.21,0.00053698,120]
[394030941,1763200337634,-500.0,0.00053698,120]
[394030942,1763200337645,-170.86368571,0.00053698,120]
[394030943,1763200337656,-536.43,0.00053698,120]
[394030944,1763200337666,-505.46,0.00053698,120]
[394030945,1763200337677,-500.0,0.00053698,120]
[394030946,1763200337691,-500.0,0.00053698,120]
[394030947,1763200337701,-500.0,0.00053698,120]
[394030948,1763200337711,-566.44,0.00053698,120]
[394030949,1763200337722,-829.99,0.00053698,120]
[394030950,1763200337732,-500.0,0.00053698,120]
[394030951,1763200337743,-500.0,0.00053698,120]
[394030952,1763200337753,-500.0,0.00053698,120]
[394030953,1763200337764,-508.35579339,0.00053698,120]
[394030954,1763200337774,-546.38,0.00053698,120]
[394030955,1763200337784,-785.26,0.00053698,120]
[394030956,1763200337795,-500.0,0.00053698,120]
[394030957,1763200337806,-1165.61,0.00053698,120]
[394030958,1763200337816,-629.76,0.00053698,120]
[394030959,1763200337826,-245.41882442,0.00053698,120]
[394030960,1763200337837,-511.51,0.00053698,2]
[394030961,1763200337848,-500.0,0.00053698,120]
[394030962,1763200337858,-500.0,0.00053698,120]
[394030963,1763200337869,-515.28,0.00053698,120]
[394030964,1763200338203,-500.0,0.00053698,120]
[394030965,1763200338213,-958.77,0.00053698,120]
[394030966,1763200338226,-500.0,0.00053698,120]
[394030967,1763200338236,-531.24,0.00053698,120]
[394030968,1763200338245,-1312.52,0.00053698,120]
[394030969,1763200338254,-666.72,0.00053698,120]
[394030970,1763200338265,-500.0,0.00053698,120]
[394030971,1763200338273,-500.0,0.00053698,120]
[394030972,1763200338282,-505.97,0.00053698,120]
[394030973,1763200338293,-500.0,0.00053698,120]
[394030974,1763200338304,-507.65,0.00053698,2]
[394030975,1763200338313,-500.0,0.00053698,120]
[394030976,1763200338322,-655.84,0.00053698,120]
[394030977,1763200338331,-566.68,0.00053698,120]
[394030978,1763200338342,-629.45,0.00053698,120]
[394030979,1763200338352,-500.0,0.00053698,120]
[394030980,1763200338363,-532.44,0.00053698,120]
[394030981,1763200338373,-517.42,0.00053698,120]
[394030982,1763200338382,-500.0,0.00053698,120]
[394030983,1763200338392,-512.08,0.00053698,120]
[394030984,1763200338402,-948.59,0.00053698,120]
[394030985,1763200338412,-1011.89,0.00053698,120]
[394030986,1763200338422,-875.77,0.00053698,120]
[394030987,1763200338432,-500.0,0.00053698,120]
[394030988,1763200338441,-500.0,0.00053698,120]
[394030989,1763200338451,-604.95,0.00053698,120]
[394030990,1763200338460,-500.0,0.00053698,120]
[394030991,1763200338469,-564.94,0.00053698,120]
[394030992,1763200338479,-1119.68,0.00053698,120]
[394030993,1763200338489,-1259.05,0.00053698,120]
[394030994,1763200338498,-865.15,0.00053698,120]
[394030995,1763200338509,-955.73,0.00053698,120]
[394030996,1763200338519,-615.78631018,0.00053698,120]
[394030997,1763200338528,-500.0,0.00053698,120]
[394030998,1763200338538,-500.0,0.00053698,21]
[394030999,1763200338547,-1298.83,0.00053698,120]
[394031000,1763200338558,-687.91,0.00053698,120]
[394031001,1763200338568,-500.0,0.00053698,120]
[394031002,1763200338577,-1584.66,0.00053698,120]
[394031003,1763200338587,-625.34,0.00053698,120]
[394031004,1763200338596,-500.0,0.00053698,120]
[394031005,1763200338606,-626.26,0.00053698,120]
[394031006,1763200338615,-776.15,0.00053698,120]
[394031007,1763200338625,-1059.33,0.00053698,120]
[394031008,1763200338634,-2689.19,0.00053698,120]
[394031009,1763200338644,-500.0,0.00053698,120]
[394031010,1763200338654,-1158.62,0.00053698,120]
[394031011,1763200338664,-520.26,0.00053698,120]
[394031012,1763200338673,-500.0,0.00053698,120]
[394031013,1763200338683,-777.19,0.00053698,120]
[394031014,1763200338692,-516.25626795,0.00053698,120]
[394031015,1763200338701,-500.0,0.00053698,120]
[394031016,1763200338710,-1619.88,0.00053698,30]
[394031017,1763200338719,-1089.69,0.00053698,120]
[394031018,1763200338728,-576.07,0.00053698,120]
[394031019,1763200338738,-500.0,0.00053698,120]
[394031020,1763200338747,-1298.65,0.00053698,120]
[394031021,1763200338756,-527.42,0.00053698,120]
[394031022,1763200338766,-500.0,0.00053698,120]
[394031023,1763200338775,-2380.54,0.00053698,120]
[394031024,1763200338784,-1477.9,0.00053698,120]
[394031025,1763200338795,-979.94,0.00053698,120]
[394031026,1763200338804,-745.02,0.00053698,120]
[394031027,1763200338814,-500.0,0.00053698,120]
[394031028,1763200338823,-500.41,0.00053698,120]
[394031029,1763200338832,-500.0,0.00053698,120]
[394031030,1763200338841,-500.0,0.00053698,120]
[394031031,1763200338851,-507.72,0.00053698,120]
[394031032,1763200338861,-539.7,0.00053698,120]
[394031033,1763200338870,-789.21,0.00053698,120]
[394031034,1763200338880,-500.0,0.00053698,120]
[394031035,1763200338889,-500.0,0.00053698,120]
[394031036,1763200338899,-937.06,0.00053698,120]
[394031037,1763200338908,-523.49,0.00053698,120]
[394031038,1763200338918,-571.26,0.00053698,120]
[394031039,1763200338927,-840.74,0.00053698,120]
[394031040,1763200338937,-839.73,0.00053698,120]
[394031041,1763200338947,-263.37938881,0.00053698,120]
[394031042,1763200338956,-548.3,0.00053698,120]
[394031043,1763200338969,-533.64,0.00053698,120]
[394031044,1763200338978,-500.0,0.00053698,120]
[394031045,1763200338988,-1390.62,0.00053698,120]
[394031046,1763200338997,-572.61,0.00053698,120]
[394031047,1763200339007,-1276.71,0.00053698,120]
[394031048,1763200339016,-1188.94,0.00053698,120]
[394031049,1763200339025,-1077.77,0.00053698,120]
[394031050,1763200339035,-1791.91,0.00053698,120]
[394031051,1763200339045,-273.7,0.00053698,120]
[394031052,1763200339054,-1017.14,0.00053698,120]
[394031053,1763200339063,-278.6895643,0.00053698,120]
[394031054,1763200339072,-500.0,0.00053698,120]
[394031055,1763200339082,-936.67,0.00053698,120]
[394031056,1763200339091,-500.0,0.00053698,120]
[394031057,1763200339100,-500.0,0.00053698,120]
[394031058,1763200339109,-649.89,0.00053698,120]
[394031059,1763200339118,-1776.75,0.00053698,120]
[394031060,1763200339127,-500.0,0.00053698,120]
[394031061,1763200339137,-288.51576468,0.00053698,120]
[394031062,1763200339147,-500.0,0.00053698,120]
[394031063,1763200339156,-500.0,0.00053698,120]
[394031064,1763200339166,-532.97,0.00053698,120]
[394031065,1763200339175,-500.0,0.00053698,120]
[394031066,1763200339185,-777.09,0.00053698,120]
[394031067,1763200339195,-500.0,0.00053698,120]
[394031068,1763200339204,-500.0,0.00053698,120]
[394031069,1763200339214,-1276.7,0.00053698,7]
[394031070,1763200339227,-927.9,0.00053698,120]
[394031071,1763200339236,-769.66,0.00053698,120]
[394031072,1763200339246,-979.1,0.00053698,120]
[394031073,1763200339256,-500.0,0.00053698,120]
[394031074,1763200339267,-484.96186078,0.00053698,120]
[394031075,1763200339277,-500.0,0.00053698,120]
[394031076,1763200339286,-624.67,0.00053698,120]
[394031077,1763200339298,-609.02,0.00053698,120]
[394031078,1763200339307,-287.86386053,0.00053698,120]
[394031079,1763200339317,-327.63801595,0.00053698,120]
[394031080,1763200339326,-500.0,0.00053698,120]
[394031081,1763200339336,-500.0,0.00053698,120]
[394031082,1763200339346,-745.41,0.00053698,120]
[394031083,1763200339355,-500.0,0.00053698,120]
[394031084,1763200339365,-4568.1,0.00053698,3]
[394031085,1763200339375,-613.09306072,0.00053698,120]
[394031086,1763200339385,-1131.39,0.00053698,120]
[394031087,1763200339394,-500.0,0.00053698,120]
[394031088,1763200339404,-500.0,0.00053698,120]
[394031089,1763200339414,-797.3,0.00053698,120]
[394031090,1763200339425,-849.34,0.00053698,120]
[394031091,1763200339434,-500.0,0.00053698,120]
[394031092,1763200339444,-577.74,0.00053698,120]
[394031093,1763200339455,-647.88,0.00053698,120]
[394031094,1763200339465,-566.74,0.00053698,120]
[394031095,1763200339474,-636.73,0.00053698,120]
[394031096,1763200339484,-500.0,0.00053698,30]
[394031097,1763200339493,-500.0,0.00053698,120]
[394031098,1763200339503,-500.0,0.00053698,120]
[394031099,1763200339513,-1133.68,0.00053698,120]
[394031100,1763200339522,-500.0,0.00053698,120]
[394031101,1763200339532,-500.0,0.00053698,120]
[394031102,1763200339542,-1012.59,0.00053698,120]
[394031103,1763200339552,-500.0,0.00053698,120]
[394031104,1763200339562,-1236.1,0.00053698,120]
[394031105,1763200339571,-500.0,0.00053698,120]
[394031106,1763200339581,-800.22,0.00053698,120]
[394031107,1763200339590,-500.0,0.00053698,120]
[394031108,1763200339599,-815.37,0.00053698,120]
[394031109,1763200339608,-1270.32,0.00053698,120]
[394031110,1763200339618,-500.0,0.00053698,120]
[394031111,1763200339628,-617.48,0.00053698,120]
[394031112,1763200339637,-2708.03,0.00053698,120]
[394031113,1763200339647,-500.0,0.00053698,120]
[394031114,1763200339656,-1700.39,0.00053698,120]
[394031115,1763200339666,-845.92,0.00053698,120]
[394031116,1763200339675,-590.7,0.00053698,120]
[394031117,1763200339685,-500.0,0.00053698,120]
[394031118,1763200339694,-500.0,0.00053698,120]
[394031119,1763200339704,-576.07,0.00053698,120]
[394031120,1763200339714,-406.78931414,0.00053698,120]
[394031121,1763200339723,-500.0,0.00053698,120]
[394031122,1763200339732,-228.78818538,0.00053698,120]
[394031123,1763200339742,-221.6,0.00053698,120]
[394031124,1763200339751,-490.78698337,0.00053698,2]
[394031125,1763200339760,-812.44,0.00053698,2]
[394031126,1763200339770,-557.41,0.00053698,120]
[394031127,1763200339779,-457.76,0.00053698,21]
[394031128,1763200339789,-1000.0,0.00053698,30]
[394031129,1763200339798,-500.0,0.00053972,120]
[394031130,1763200339807,-687.74,0.00053972,120]
[394031131,1763200339817,-554.45,0.00053972,120]
[394031132,1763200339826,-500.0,0.00053972,120]
[394031133,1763200339835,-500.0,0.00053972,120]
[394031134,1763200339845,-582.92,0.00053972,120]
[394031135,1763200339854,-790.87,0.00053972,120]
[394031136,1763200339864,-629.47,0.00053972,120]
[394031137,1763200339874,-673.94,0.00053972,120]
[394031138,1763200339883,-758.17,0.00053972,120]
[394031139,1763200339892,-590.85,0.00053972,120]
[394031140,1763200339901,-731.68,0.00053972,120]
[394031141,1763200339911,-571.3,0.00053972,120]
[394031142,1763200339920,-1090.76,0.00053972,7]
[394031143,1763200339928,-3400.85,0.00053972,2]
[394031144,1763200339937,-1174.97,0.00053972,120]
[394031145,1763200339947,-618.7,0.00053972,120]
[394031146,1763200339955,-506.21,0.00053972,120]
[394031147,1763200339964,-500.0,0.00053972,120]
[394031148,1763200339973,-536.43,0.00053972,120]
[394031149,1763200339982,-505.46,0.00053972,120]
[394031150,1763200339991,-500.0,0.00053972,120]
[394031151,1763200340000,-500.0,0.00053972,120]
[394031152,1763200340009,-500.0,0.00053972,120]
[394031153,1763200340018,-566.44,0.00053972,120]
[394031154,1763200340027,-829.99,0.00053972,120]
[394031155,1763200340036,-591.91942383,0.00053972,120]
[394031156,1763200340045,-500.0,0.00053972,120]
[394031157,1763200340054,-500.0,0.00053972,120]
[394031158,1763200340063,-546.38,0.00053972,120]
[394031159,1763200340072,-785.26,0.00053972,120]
[394031160,1763200340081,-339.3103894,0.00053972,120]
[394031161,1763200340091,-1165.61,0.00053972,120]
[394031162,1763200340099,-629.76,0.00053972,120]
[394031163,1763200340108,-511.51,0.00053972,2]
[394031164,1763200340118,-639.43263629,0.00053972,120]
[394031165,1763200340127,-470.44294908,0.00053972,120]
[394031166,1763200340135,-515.28,0.00053972,120]
[394031167,1763200340145,-500.0,0.00053972,120]
[394031168,1763200340154,-958.77,0.00053972,120]
[394031169,1763200340162,-500.0,0.00053972,120]
[394031170,1763200340171,-531.24,0.00053972,120]
[394031171,1763200340180,-1312.52,0.00053972,120]
[394031172,1763200340190,-666.72,0.00053972,120]
[394031173,1763200340199,-500.0,0.00053972,120]
[394031174,1763200340207,-500.0,0.00053972,120]
[394031175,1763200340218,-505.97,0.00053972,120]
[394031176,1763200340227,-366.01107406,0.00053972,120]
[394031177,1763200340236,-507.65,0.00053972,2]
[394031178,1763200340245,-500.0,0.00053972,120]
[394031179,1763200340255,-655.84,0.00053972,120]
[394031180,1763200340264,-566.68,0.00053972,120]
[394031181,1763200340273,-629.45,0.00053972,120]
[394031182,1763200340282,-500.0,0.00053972,120]
[394031183,1763200340293,-532.44,0.00053972,120]
[394031184,1763200340302,-517.42,0.00053972,120]
[394031185,1763200340311,-500.0,0.00053972,120]
[394031186,1763200340320,-512.08,0.00053972,120]
[394031187,1763200340328,-948.59,0.00053972,120]
[394031188,1763200340337,-1011.89,0.00053972,120]
[394031189,1763200340346,-875.77,0.00053972,120]
[394031190,1763200340355,-500.0,0.00053972,120]
[394031191,1763200340364,-500.0,0.00053972,120]
[394031192,1763200340373,-604.95,0.00053972,120]
[394031193,1763200340383,-500.0,0.00053972,120]
[394031194,1763200340391,-564.94,0.00053972,120]
[394031195,1763200340400,-1119.68,0.00053972,120]
[394031196,1763200340409,-1259.05,0.00053972,120]
[394031197,1763200340418,-865.15,0.00053972,120]
[394031198,1763200340428,-955.73,0.00053972,120]
[394031199,1763200340437,-500.0,0.00053972,120]
[394031200,1763200340446,-500.0,0.00053972,21]
[394031201,1763200340455,-1298.83,0.00053972,120]
[394031202,1763200340464,-687.91,0.00053972,120]
[394031203,1763200340549,-413.15615286,0.00053972,120]
[394031204,1763200340558,-1584.66,0.00053972,120]
[394031205,1763200340567,-625.34,0.00053972,120]
[394031206,1763200340576,-500.0,0.00053972,120]
[394031207,1763200340585,-626.26,0.00053972,120]
[394031208,1763200340594,-776.15,0.00053972,120]
[394031209,1763200340603,-1059.33,0.00053972,120]
[394031210,1763200340613,-2689.19,0.00053972,120]
[394031211,1763200340622,-500.0,0.00053972,120]
[394031212,1763200340631,-1158.62,0.00053972,120]
[394031213,1763200340640,-520.26,0.00053972,120]
[394031214,1763200340649,-500.0,0.00053972,120]
[394031215,1763200340659,-777.19,0.00053972,120]
[394031216,1763200340668,-510.36008324,0.00053972,120]
[394031217,1763200340677,-1619.88,0.00053972,30]
[394031218,1763200340686,-1089.69,0.00053972,120]
[394031219,1763200340695,-576.07,0.00053972,120]
[394031220,1763200340704,-643.17242069,0.00053972,120]
[394031221,1763200340713,-1298.65,0.00053972,120]
[394031222,1763200340722,-527.42,0.00053972,120]
[394031223,1763200340740,-500.0,0.00053972,120]
[394031224,1763200340750,-2380.54,0.00053972,120]
[394031225,1763200340760,-1477.9,0.00053972,120]
[394031226,1763200340769,-979.94,0.00053972,120]
[394031227,1763200340778,-745.02,0.00053972,120]
[394031228,1763200340788,-500.0,0.00053972,120]
[394031229,1763200340797,-500.41,0.00053972,120]
[394031230,1763200340807,-500.0,0.00053972,120]
[394031231,1763200340815,-500.0,0.00053972,120]
[394031232,1763200340825,-507.72,0.00053972,120]
[394031233,1763200340834,-539.7,0.00053972,120]
[394031234,1763200340843,-789.21,0.00053972,120]
[394031235,1763200340852,-500.0,0.00053972,120]
[394031236,1763200340861,-450.01879268,0.00053972,120]
[394031237,1763200340870,-937.06,0.00053972,120]
[394031238,1763200340882,-523.49,0.00053972,120]
[394031239,1763200340901,-571.26,0.00053972,120]
[394031240,1763200340910,-840.74,0.00053972,120]
[394031241,1763200340919,-839.73,0.00053972,120]
[394031242,1763200340930,-548.3,0.00053972,120]
[394031243,1763200340939,-533.64,0.00053972,120]
[394031244,1763200340951,-500.0,0.00053972,120]
[394031245,1763200340961,-1390.62,0.00053972,120]
[394031246,1763200340971,-572.61,0.00053972,120]
[394031247,1763200340981,-1276.71,0.00053972,120]
[394031248,1763200340991,-1188.94,0.00053972,120]
[394031249,1763200341002,-1077.77,0.00053972,120]
[394031250,1763200341012,-1791.91,0.00053972,120]
[394031251,1763200341022,-1017.14,0.00053972,120]
[394031252,1763200341033,-500.0,0.00053972,120]
[394031253,1763200341043,-936.67,0.00053972,120]
[394031254,1763200341053,-500.0,0.00053972,120]
[394031255,1763200341063,-500.0,0.00053972,120]
[394031256,1763200341073,-649.89,0.00053972,120]
[394031257,1763200341083,-1776.75,0.00053972,120]
[394031258,1763200341093,-500.0,0.00053972,120]
[394031259,1763200341103,-500.0,0.00053972,120]
[394031260,1763200341117,-498.50859738,0.00053972,120]
[394031261,1763200341128,-532.97,0.00053972,120]
[394031262,1763200341138,-500.0,0.00053972,120]
[394031263,1763200341154,-777.09,0.00053972,120]
[394031264,1763200341164,-500.0,0.00053972,120]
[394031265,1763200341173,-500.0,0.00053972,120]
[394031266,1763200341183,-1276.7,0.00053972,7]
[394031267,1763200341192,-927.9,0.00053972,120]
[394031268,1763200341201,-769.66,0.00053972,120]
[394031269,1763200341210,-979.1,0.00053972,120]
[394031270,1763200341225,-500.0,0.00053972,120]
[394031271,1763200341234,-500.0,0.00053972,120]
[394031272,1763200341244,-624.67,0.00053972,120]
[394031273,1763200341254,-609.02,0.00053972,120]
[394031274,1763200341265,-500.0,0.00053972,120]
[394031275,1763200341274,-500.0,0.00053972,120]
[394031276,1763200341283,-745.41,0.00053972,120]
[394031277,1763200341293,-4568.1,0.00053972,3]
[394031278,1763200341302,-500.0,0.00053972,120]
[394031279,1763200341311,-1131.39,0.00053972,120]
[394031280,1763200341320,-342.30472316,0.00053972,120]
[394031281,1763200341330,-569.64313364,0.00053972,120]
[394031282,1763200341339,-797.3,0.00053972,120]
[394031283,1763200341348,-849.34,0.00053972,120]
[394031284,1763200341357,-500.0,0.00053972,120]
[394031285,1763200341366,-577.74,0.00053972,120]
[394031286,1763200341375,-647.88,0.00053972,120]
[394031287,1763200341385,-566.74,0.00053972,120]
[394031288,1763200341394,-636.73,0.00053972,120]
[394031289,1763200341403,-500.0,0.00053972,30]
[394031290,1763200341412,-500.0,0.00053972,120]
[394031291,1763200341421,-500.0,0.00053972,120]
[394031292,1763200341430,-1133.68,0.00053972,120]
[394031293,1763200341439,-500.0,0.00053972,120]
[394031294,1763200341448,-500.0,0.00053972,120]
[394031295,1763200341457,-1012.59,0.00053972,120]
[394031296,1763200341466,-500.0,0.00053972,120]
[394031297,1763200341476,-1236.1,0.00053972,120]
[394031298,1763200341485,-500.0,0.00053972,120]
[394031299,1763200341495,-800.22,0.00053972,120]
[394031300,1763200341504,-500.0,0.00053972,120]
[394031301,1763200341514,-815.37,0.00053972,120]
[394031302,1763200341523,-1270.32,0.00053972,120]
[394031303,1763200341533,-500.0,0.00053972,120]
[394031304,1763200341543,-617.48,0.00053972,120]
[394031305,1763200341552,-2708.03,0.00053972,120]
[394031306,1763200341562,-500.0,0.00053972,120]
[394031307,1763200341571,-1700.39,0.00053972,120]
[394031308,1763200341580,-845.92,0.00053972,120]
[394031309,1763200341590,-590.7,0.00053972,120]
[394031310,1763200341600,-500.0,0.00053972,120]
[394031311,1763200341609,-445.96795666,0.00053972,120]
[394031312,1763200341619,-576.07,0.00053972,120]
[394031313,1763200341629,-200.49831869,0.00053972,120]